Cogmind - Beta 16 @@@ ROGUE MODE // 2025.11.10 @ 21:31:43 Player: Velocity Result: Destroyed by EMP Trap Performance ------------- Evolutions (1) 500 Regions Visited (4) 800 Robots Destroyed (33) 165 Value Destroyed (900) 900 Prototype IDs (5) 100 Alien Tech Used (0) 0 Bonus (0) 0 TOTAL SCORE: 2465 Bonus ------- None Cogmind --------- Core Integrity 0/400 Matter 300/300 Energy 264/265 System Corruption 5% Temperature Cool (0) Movement Rolling (105) Ox1 Location -9/Storage Parts ------- > --- POWER (1) -------- Improved Ion Engine > --- PROPULSION (3) --- Armored Wheel > --- UTILITY (3) ------ Medium Storage Unit Transport Network Coupler > --- WEAPON (2) ------- Improved Assault Rifle Improved Assault Rifle > --- INVENTORY (10) --- Flight Unit Flight Unit VTOL Module Structural Scanner Rocket Launcher Heavy Flail Scythe Peak State ------------ > --- POWER ------------ Improved Ion Engine > --- PROPULSION ------- Flight Unit VTOL Module VTOL Module > --- UTILITY ---------- Medium Storage Unit Transport Network Coupler Light Armor Plating > --- WEAPON ----------- Advanced Beam Cannon Improved Assault Rifle > --- INVENTORY -------- Flight Unit Structural Scanner Improved Assault Rifle Rocket Launcher Heavy Flail Scythe [Rating: 17] Favorites ----------- Power Ion Engine Engine Ion Engine Propulsion Aluminum Leg Leg Aluminum Leg Wheel Armored Wheel Flight Unit VTOL Module Utility Small Storage Unit Device Disposable Heat Sink Storage Small Storage Unit Processor Transport Network Coupler Protection Light Armor Plating Weapon Particle Cannon Energy Gun EM Pulse Gun Energy Cannon Particle Cannon Ballistic Gun Improved Assault Rifle Slashing Weapon Scythe Build | -11 -10 -10 -9 -9 ------- Run | Yrd Mat Min Mat Sto Slots Evolved 2 | . . . 2 . Power . | . . . . . Propulsion 1 | . . . 1 . Utility 1 | . . . 1 . Weapon . | . . . . . Parts Attached 32 | 7 2 . 11 12 Power 5 | 1 . . 3 1 Engine 5 | 1 . . 3 1 Core . | . . . . . Reactor . | . . . . . Propulsion 9 | 2 2 . . 5 Treads . | . . . . . Leg 4 | 2 2 . . . Wheel 1 | . . . . 1 Hover . | . . . . . Flight 4 | . . . . 4 Utility 8 | 2 . . 5 1 Device 4 | 1 . . 3 . Storage 2 | 1 . . 1 . Processor 1 | . . . 1 . Hackware . | . . . . . Protection 1 | . . . . 1 Artifact . | . . . . . Weapon 10 | 2 . . 3 5 Energy Gun 2 | 2 . . . . Energy Cannon 3 | . . . 2 1 Ballistic Gun 4 | . . . 1 3 Ballistic Cannon . | . . . . . Launcher . | . . . . . Special Weapon . | . . . . . Impact Weapon . | . . . . . Slashing Weapon 1 | . . . . 1 Piercing Weapon . | . . . . . Special Melee Weapon . | . . . . . Unidentified Prototypes 3 | . . . . 3 Parts Lost 14 | . . . 7 7 Power 4 | . . . 2 2 Propulsion 4 | . . . 2 2 Utility 4 | . . . 2 2 Weapon 2 | . . . 1 1 Highest Loss Streak 4 | . . . 3 4 To Critical Strikes . | . . . . . Average Backups 7 | 2 6 7 8 7 Power 1 | . 1 2 1 . Propulsion 1 | 1 2 2 1 2 Utility 1 | . . 1 1 1 Weapon 3 | . 1 2 3 3 Tool/Special . | . . . . . Unused Backups 8 | . 2 . 3 3 Power 1 | . . . 1 . Propulsion 2 | . 2 . . . Utility 1 | . . . . 1 Weapon 4 | . . . 2 2 Tool/Special . | . . . . . Average Slot Usage (%) 90 | . 100 100 91 77 Engine 11 | . 14 14 10 10 Leg 23 | . 28 28 29 3 Flight 2 | . . . . 13 Device 10 | . 14 14 11 4 Storage 11 | . 14 14 11 11 Processor 5 | . . . 6 11 Protection 1 | . . . . 5 Energy Gun 9 | . 28 28 4 . Energy Cannon 8 | . . . 15 . Ballistic Gun 4 | . . . 1 16 Peak Build Rating 17 | 7 7 7 13 17 Average Rating 10 | 4 7 7 11 13 On Entrance 6 | . 7 7 7 10 Avg Prop Armor Cover (%) . | . . . . . Naked Turns . | . . . . . Heaviest Build 28 | 15 15 15 28 26 Greatest Support 30 | 20 20 20 30 12 Greatest Overweight (x) 8 | . . . 2 8 Average Overweight (x) . | . . . . 1 Largest Inventory Capacity 10 | 8 8 8 10 10 Average Capacity 8 | 6 8 8 8 10 Most Carried 10 | 4 8 8 10 10 Average Carried 7 | 2 6 7 8 7 Final Capacity 10 | 8 8 8 10 10 Final Carried 10 | 4 7 8 10 7 Class Distribution -------------------- 86% | Mutant 13% | Scavenger-Mutant Dominant Class ---------------- Mutant | -10/Materials Mutant | -10/Mines Mutant | -9/Materials Mutant | -9/Storage Resources | -11 -10 -10 -9 -9 ----------- Run | Yrd Mat Min Mat Sto Matter Collected 723 | 204 86 . 179 254 Remotely . | . . . . . Salvage Created 1295 | 19 120 . 864 292 Parts 81 | 1 8 . 57 15 Haulers Intercepted 4 | . . . 3 1 Recyclers Shooed . | . . . . . Parts Field Recycled . | . . . . . Retrieved Matter . | . . . . . Parts Self-Destructed . | . . . . . Prevented . | . . . . . Parts Restored . | . . . . . Kills | -11 -10 -10 -9 -9 ------- Run | Yrd Mat Min Mat Sto Combat Hostiles Destroyed 27 | . 2 . 20 5 Guns 10 | . 2 . 3 5 Cannons 17 | . . . 17 . Classes Destroyed 6 | 1 2 . 3 . Tunneler 1 | 1 . . . . Hauler 4 | . . . 3 1 Watcher 1 | . 1 . . . Swarmer 8 | . . . 8 . Grunt 9 | . 2 . 5 2 Sentry 10 | . . . 7 3 Best Kill Streak 5 | 1 1 . 5 2 Combat Bots Only 4 | . 1 . 4 2 Max Kills in Single Turn 1 | 1 1 . 1 1 Gunslinging . | . . . . . Exploded . | . . . . . Melee . | . . . . . Uniques/NPCs Destroyed . | . . . . . Combat | -11 -10 -10 -9 -9 -------- Run | Yrd Mat Min Mat Sto Hostile Shots Fired 219 | . 10 . 140 69 Missed 70 | . 3 . 48 19 Hits 149 | . 7 . 92 50 Projectile 149 | . 7 . 92 50 Critical Strikes 5 | . . . 2 3 Damage Taken 1870 | . 95 . 1028 747 Core 402 | . . . 192 210 Absorbed by Shields . | . . . . . Core Remaining (%) 100 | 100 . 100 . . Volleys Fired 99 | 1 9 . 60 29 Largest 2 | 2 2 . 2 2 Hottest 136 | 90 90 . 136 46 Shots Fired 176 | 2 18 . 120 36 Gun 93 | 2 18 . 37 36 Cannon 83 | . . . 83 . Launcher . | . . . . . Special . | . . . . . Kinetic 41 | . . . 5 36 Thermal 93 | 1 9 . 83 . Explosive . | . . . . . Electromagnetic 42 | 1 9 . 32 . Robot Hit Streak 32 | 2 8 . 10 32 Robot Miss Streak 4 | . 2 . 4 . Penetration Max . | . . . . . Secondary Targets . | . . . . . Shots Hit Robots 132 | 2 14 . 85 31 Core Hits 47 | 1 6 . 30 10 Critical Kills . | . . . . . Critical Parts Destroyed 1 | . . . . 1 Critical Strikes 3 | 1 . . 1 1 Destroy 1 | . . . . 1 Corrupt 2 | 1 . . 1 . Melee Attacks 1 | . . . . 1 Impact . | . . . . . Slashing 1 | . . . . 1 Piercing . | . . . . . Sneak Attacks . | . . . . . Combat Hostiles . | . . . . . Follow-up Attacks . | . . . . . Damage Inflicted 2239 | 27 190 . 1551 471 Guns 1042 | 27 190 . 354 471 Cannons 1192 | . . . 1192 . Explosions . | . . . . . Melee . | . . . . . Ramming 5 | . . . 5 . Kinetic 513 | . . . 42 471 Thermal 1303 | 12 99 . 1192 . Explosive . | . . . . . Electromagnetic 418 | 15 91 . 312 . Impact . | . . . . . Slashing . | . . . . . Piercing . | . . . . . Highest Corruption 4 | . . . 4 4 Average Corruption 3 | . . . 3 4 Corruption Purged . | . . . . . Corruption Blocked . | . . . . . Effects 32 | . . . 24 8 Message Errors 7 | . . . 4 3 Matter Fused 8 | . . . 7 1 Heat Flow Errors 3 | . . . 3 . Energy Discharges 4 | . . . 4 . Parts Fused 1 | . . . 1 . Data Loss (minor) 7 | . . . 3 4 Misfires 1 | . . . 1 . Weapon Failures 1 | . . . 1 . Overload Shots . | . . . . . Overflow Damage 2 | . . . 2 . Projectiles 2 | . . . 2 . Explosions . | . . . . . Melee . | . . . . . Knockbacks . | . . . . . Impact . | . . . . . Kinetic . | . . . . . Secondary . | . . . . . Self-Inflicted Damage . | . . . . . Shots . | . . . . . Rammed . | . . . . . Targets Rammed 2 | . . . 2 . Kicked 2 | . . . 2 . Crushed . | . . . . . Highest Temperature 333 | 30 138 . 333 21 Average Temperature 96 | 18 48 . 109 10 Received Heat Transfer 672 | . 57 . 321 294 Effects 2 | . . . 2 . Energy Bleed 2 | . . . 2 . Siege Activations . | . . . . . Martial Activations . | . . . . . Shielding Activations . | . . . . . Robots Disrupted . | . . . . . Combat Hostiles . | . . . . . Robots Corrupted . | . . . . . Combat Hostiles . | . . . . . Parts Fried 2 | . . . 2 . Impact Corruptions . | . . . . . Robots Melted . | . . . . . Combat Hostiles . | . . . . . Parts Melted 2 | . 1 . 1 . Heat Transferred 2479 | 37 296 . 2146 . Parts Sabotaged . | . . . . . Parts Stolen . | . . . . . Parts Stripped . | . . . . . Power Chain Reactions . | . . . . . Alert | -11 -10 -10 -9 -9 ------- Run | Yrd Mat Min Mat Sto Maximum Alert Level . | . . . . . Low Security (%) 100 | 100 100 100 100 100 Level 1 . | . . . . . Level 2 . | . . . . . Level 3 . | . . . . . Level 4 . | . . . . . Level 5 . | . . . . . High Security . | . . . . . Max Security . | . . . . . Peak Influence 191 | 5 30 . 191 66 Initial 66 | . . . . 66 Average 62 | . 6 . 106 27 Influence Increases 820 | 5 64 . 588 163 Destroy 0b10 Robot/C 540 | . 40 . 400 100 Destroy 0b10 Robot/NC 30 | 5 5 . 15 5 Destroy Leader 170 | . 12 . 116 42 Successful Hack 18 | . 7 . 11 . Disable Machine 30 | . . . 15 15 Destroy Structure 2 | . . . 1 1 Lose Combat Pursuer 30 | . . . 30 . Influence Decreases 801 | 5 64 . 431 301 Entered New Map 91 | . . . . 91 Time Decay 587 | 5 57 . 361 164 Lost Part 116 | . . . 70 46 Purge Threat 7 | . 7 . . . Squads Dispatched 3 | . 1 . 1 1 Investigation 2 | . 1 . 1 . Extermination . | . . . . . Reinforcement 1 | . . . . 1 Assault . | . . . . . Garrison . | . . . . . Intercept . | . . . . . Searches Triggered . | . . . . . Construction Impeded . | . . . . . Haulers Reinforced . | . . . . . Active Scanning Responses . | . . . . . Cargo Convoy Interrupts . | . . . . . Stealth | -11 -10 -10 -9 -9 --------- Run | Yrd Mat Min Mat Sto Distress Signals 1 | . . . 1 . Communications Jammed . | . . . . . Distress Signals . | . . . . . Times Spotted 54 | . 3 . 40 11 Peak Tracking Total 7 | . 2 . 7 5 Tactical Retreats 2 | . . . 2 . Traps | -11 -10 -10 -9 -9 ------- Run | Yrd Mat Min Mat Sto Traps Triggered 5 | . 1 . 3 1 Indirectly . | . . . . . Trap Hack Attempts . | . . . . . Triggered . | . . . . . Disarmed . | . . . . . Reprogrammed . | . . . . . Reused . | . . . . . Traps Extracted . | . . . . . Installed . | . . . . . Triggered . | . . . . . Machines | -11 -10 -10 -9 -9 ---------- Run | Yrd Mat Min Mat Sto Machines Disabled 2 | . . . 1 1 Max in Single Turn 1 | . . . 1 1 Garrison Access 1 | . . . . 1 Machines Repaired . | . . . . . Machines Dismantled . | . . . . . Machines Sabotaged . | . . . . . Overloaded Fab Kills . | . . . . . Hacking | -11 -10 -10 -9 -9 --------- Run | Yrd Mat Min Mat Sto Machines Accessed 10 | . 4 . 4 2 Terminals 7 | . 3 . 3 1 Fabricators . | . . . . . Repair Stations . | . . . . . Recycling Units 2 | . 1 . 1 . Scanalyzers . | . . . . . Garrison Access 1 | . . . . 1 Total Hacks 23 | . 8 . 11 4 Successful 10 | . 3 . 5 2 Failed 13 | . 5 . 6 2 Catastrophic 3 | . 2 . 1 . Database Lockouts . | . . . . . Manual 1 | . 1 . . . Terminals 17 | . 6 . 9 2 Fabricators . | . . . . . Repair Stations . | . . . . . Recycling Units 4 | . 2 . 2 . Scanalyzers . | . . . . . Garrison Access 2 | . . . . 2 Terminal Hacks 7 | . 2 . 4 1 Robot Analysis 1 | . . . 1 . Prototype ID Bank 1 | . . . 1 . Open Door 1 | . . . . 1 Branch Access Points 2 | . 1 . 1 . Alert Level 1 | . . . 1 . Unreport Threat 1 | . 1 . . . Fabricator Hacks . | . . . . . Repair Station Hacks . | . . . . . Recycling Unit Hacks 2 | . 1 . 1 . Retrieve Components 2 | . 1 . 1 . Scanalyzer . | . . . . . Garrison Access Hacks 1 | . . . . 1 Seal Access 1 | . . . . 1 Unauthorized Hacks . | . . . . . Terminals . | . . . . . Fabricators . | . . . . . Repair Stations . | . . . . . Recycling Units . | . . . . . Scanalyzers . | . . . . . Garrison Access . | . . . . . Data Cores Recovered . | . . . . . Used . | . . . . . Hacking Detections 7 | . 3 . 2 2 Full Trace Events 1 | . . . 1 . Feedback Events . | . . . . . Feedback Blocked . | . . . . . Robot Schematics Acquired . | . . . . . Robots Built . | . . . . . Authchips . | . . . . . Time . | . . . . . Total Robot Build Rating . | . . . . . Part Schematics Acquired . | . . . . . Parts Built . | . . . . . Authchips . | . . . . . Time . | . . . . . Total Part Build Rating . | . . . . . Part Studies Acquired . | . . . . . Parts Repaired . | . . . . . Time . | . . . . . Parts Recycled . | . . . . . Recycled Matter . | . . . . . Retrieved Matter . | . . . . . Retrieved Components 14 | . 5 . 9 . Parts Scanalyzed . | . . . . . Part Schematics Acquired . | . . . . . Parts Damaged . | . . . . . Bothacking | -11 -10 -10 -9 -9 ------------ Run | Yrd Mat Min Mat Sto Used RIF Installer . | . . . . . Robots Hacked . | . . . . . Non-combat . | . . . . . Combat . | . . . . . Robot Hacks Applied . | . . . . . Relay Couplers Released . | . . . . . Fabnet Peak Effective % . | . . . . . Robots Rewired . | . . . . . Allies Hacked . | . . . . . Hacks Repelled . | . . . . . Allies | -11 -10 -10 -9 -9 -------- Run | Yrd Mat Min Mat Sto Total Allies . | . . . . . Largest Group . | . . . . . Highest-Rated Group . | . . . . . Highest-Rated Ally . | . . . . . Total Orders . | . . . . . Ally Attacks . | . . . . . Total Damage . | . . . . . Kills . | . . . . . Allies Corrupted . | . . . . . Allies Melted . | . . . . . Intel | -11 -10 -10 -9 -9 ------- Run | Yrd Mat Min Mat Sto Active Infowar (turns) 1731 | 7 265 185 852 422 Seismic 668 | 7 265 185 211 . T.N.C. 1063 | . . . 641 422 Robot Analysis Total 1 | . . . 1 . Derelict Logs Recovered . | . . . . . Drone Launches . | . . . . . Drone Recoveries . | . . . . . Exploration | -11 -10 -10 -9 -9 ------------- Run | Yrd Mat Min Mat Sto Turns Passed 2040 | 84 265 185 1084 422 Spaces Moved 1205 | 58 187 149 614 197 Core 8 | 3 . . . 5 Treads . | . . . . . Legs 1056 | 55 187 149 614 51 Wheels 49 | . . . . 49 Hover . | . . . . . Flight 92 | . . . . 92 Fastest Speed 50 | 50 120 120 120 110 Average Speed 133 | 116 120 120 132 166 Slowest Speed 450 | 120 120 120 260 450 Overloaded Moves . | . . . . . Propulsion Burnouts . | . . . . . Robots Hopped . | . . . . . Potential Cave-ins . | . . . . . Cave-ins Triggered . | . . . . . Exploration Rate (%) 40 | 4 41 67 57 35 Regions Visited 4 Branch Regions 2 Pre-discovered Areas . | . . . . . Known Exits Taken 2 | . 1 . 1 . Unknown Exits Taken 2 | 1 . 1 . . Scrap Searched 1 | . . 1 . . Spaces Dug . | . . . . . Terrain Destroyed . | . . . . . Melee . | . . . . . Projectile . | . . . . . AOE . | . . . . . Terrain Rammed . | . . . . . Walls Destroyed . | . . . . . Machines Disabled . | . . . . . Actions | -11 -10 -10 -9 -9 --------- Run | Yrd Mat Min Mat Sto Total 1450 | 69 209 155 764 253 Wait 69 | . 7 6 54 2 Move 1201 | 57 186 148 613 197 Hop . | . . . . . Pick Up 21 | 4 3 1 12 1 Fast Attach 20 | 7 . . 5 8 Attach 10 | . . . 5 5 Detach 2 | . . . . 2 Swap 8 | . 2 . 3 3 Drop 17 | . 2 . 10 5 Fire 99 | 1 9 . 60 29 Melee 1 | . . . . 1 Ram . | . . . . . Kick 2 | . . . 2 . Crush . | . . . . . Escape Stasis . | . . . . . Rewire . | . . . . . Trap . | . . . . . Miscellaneous . | . . . . . Route ------- -11/Scrapyard -10/Materials (discovered 2 exits: *Min x2) -10/Mines (discovered 2 exits: *Mat x2) -9/Materials (discovered 5 exits: [*Mat] / *Min x2 / *Sto x2) -9/Storage (discovered 1 exit: [*Mat]) History --------- Turn | Location | Event 20 | -11/Scrapyard | Discovered new exit (range 16) 85 | -11/Scrapyard | Entered Materials 257 | -10/Materials | Identified exit to Mines 302 | -10/Materials | Build established: Mutant 350 | -10/Materials | Entered Mines 391 | -10/Mines | Received a Rocket Launcher from a helpful Derelict 447 | -10/Mines | Discovered new exit (range 5) 482 | -10/Mines | Discovered new exit (range 10) 535 | -10/Mines | Entered Materials 535 | -9/Materials | Evolved 2 slots: Propulsion x1, Utility x1 623 | -9/Materials | Discovered new exit (range 16) 652 | -9/Materials | Discovered new exit (range 13) 834 | -9/Materials | Lost 3 parts (1p2u) 1024 | -9/Materials | Discovered new exit (range 16) 1246 | -9/Materials | Discovered new exit (range 13) 1364 | -9/Materials | Identified exit to Mines 1364 | -9/Materials | Identified exit to Storage 1462 | -9/Materials | Lost 3 parts (1p2n) 1619 | -9/Materials | Entered Storage 1737 | -9/Storage | Core integrity fell below 50% 1816 | -9/Storage | Core integrity fell below 20% 1849 | -9/Storage | Lost 4 parts (1p1n1u1w) 2040 | -9/Storage | Discovered new exit (range 16) 2041 | -9/Storage | Destroyed by EMP Trap Last Messages --------------- 02016_ B-36 Bruiser unfolds itself. 02016_ G-34 Mercenary unfolds itself. 02023_ System corrupted: Component data lost. 02024_ U-05 Engineer destroyed. 02025_ K-01 Serf collects debris. 02040_ EXIT=FOUND 02041_ Triggered EMP Trap. 02041_ A bubble of electromagnetic force engulfs the area. 02041_ EMP Trap short circuited. 02041_ Door malfunctions. 02041_ A bubble of electromagnetic force engulfs the area. 02041_ EMP Trap short circuited. 02041_ Lgt. Armor Plating destroyed. 02041_ A bubble of electromagnetic force engulfs the area. 02041_ EMP Trap short circuited. 02041_ A bubble of electromagnetic force engulfs the area. Map ----- +----------------------------------------------------+ | ?????????????????????????????????????? | | ?????????????????????????????????????? | | ?????????????????????????????????????? | | ?????????????????????????????????????? | | ?????????????????????????????????????? | | ?????????????????????????????????????? | | ?????????????????????????????????????? | | ?????????????????????????????????????? | | ?????????????????????????????????????? | | ?????????????????????????????????????? | | ????????????????????????? ?????????? | | ????????????????????????? < #????????? | | ????????????????????????? #????????? | | ????????????????????????? #????????? | | ????????????????????????? #????????? | | ????????????????????????? #????????? | | ????????????????????????? #????????? | | ????????????????????????# #????????? | | ????????????????????????# #????????? | | ????????????????????????# #????????? | | ????????????????????????# #??##????? | | ????????????????????????# #? ????? | | ????????????????????????# #? ?????? | | ????????????????????????# # ??????? | | ????????????????????????# # """ ?? | | ????????????????????????#@ / a """ ?? | | ????????????????????##### # """ ?? | | ???????????????????? # #????????? | | ???????????????????? T # #????????? | | ??????????????????"" # #????????? | | ???????????????? """ ?# #????????? | | ???????????????? ?# #????????? | | ?????????????????""" ??# #????????? | | ?????????????????""" ??# #????????? | | ??????????????????"" ???# #????????? | | ?????????????????? a ???# #????????? | | #########+#########/#####Y #????????? | | "%" #????????? | | " != +????????? | | =%! #????????? | | ?????####+##### ######### #????????? | | ??????????????# #???????? #????????? | | ??????????????# #???????? +????????? | | ??????????????# #????????##????????? | | ??????????????# #??????????????????? | | ??????????????# #??????????????????? | | ??????????????# #??????????????????? | | ??????????????# #??????????????????? | | ??????????????# #??????????????????? | | #?????????????# #??????????????????? | +----------------------------------------------------+ Best States ------------- Heat Dissipation 50 Coolant Potential 50 Energy Generation 14 Energy Capacity 275 Matter Stores 300 Matter Capacity 300 Sight Range 16 Terrain Scan Density 10 Armor Coverage 150 Evasion (%) 55 Item Schematics ----------------- None Robot Schematics ------------------ None Fabricated ------------ Nothing Repaired ---------- Nothing Studied --------- None Alien Tech Used ----------------- None Achievements -------------- None Challenges ------------ None Game ------ Seed AlloyProjectionShield Manual? 0 Play Time 00:22:16 Cumulative 30.7 hours Start 2025.11.10 @ 21:07:38 End 2025.11.10 @ 21:31:43 Sessions 1 Manual Loads 0 Difficulty Rogue Special Mode None Game No. 19 Rogue 13 Adventurer 5 Explorer 1 Win Type - Total 1 Types 1/0/0/0/0/0/0/0/0/0 Lore% 19 Gallery% 43 Achievement% 27 Wizard Run 0 Options --------- Layout 2 ASCII 0 Keyboard 0 Movement Mouse Keybinds 0 Fullscreen 2 Font 24/Smallcaps Map View 50x44 Zoom Use 0% Tactical HUD 1 Map Filters NONE Filters NONE Steam 1 RUN: 33aa8308-e1dc-4274-83d2-756fc5e3b4f4